bitfinex/quotes_ETHUSD_20251017
["timestamp","ask_amount","ask_price","bid_price","bid_amount"]
[1760709448116,0.41243699,3803.7,3802.3,0.68139987]
[1760709448333,2.6292348,3803.4,3802.4,0.44]
[1760709448539,2.62930206,3803.3,3802.4,3.06990778]
[1760709448737,0.0458219,3803.8,3803.2,0.2151]
[1760709448932,0.6336,3804.7,3803.2,0.2151]
[1760709449139,2.62943642,3803.1,3802.3,0.6551]
[1760709449345,2.62937961,3803.2,3802.3,0.6551]
[1760709449553,1.728,3803.6,3802.3,0.6551]
[1760709449774,1.728,3803.6,3801.6,0.44]
[1760709449775,2.62929561,3803.3,3801.6,0.44]
[1760709449942,0.2146,3803.5,3801.6,0.44]
[1760709449943,1.728,3803.1,3801.6,0.44]
[1760709450144,0.6336,3803.4,3801.6,0.44]
[1760709450145,1.728,3802.7,3801.6,0.44]
[1760709450338,0.2147,3802.8,3801.1,0.44]
[1760709450563,2.63026432,3801.9,3801.1,0.44]
[1760709451144,0.6336,3803.3,3801.2,0.46630748]
[1760709451334,0.2146,3803.2,3801.2,0.44]
[1760709451662,2.63016377,3802.1,3801.2,3.07073188]
[1760709451824,0.2147,3802.5,3801.2,0.44]
[1760709452472,2.6299223,3802.4,3801.3,2.63067897]
[1760709452773,2.6299223,3802.4,3801.2,0.44]
[1760709452774,2.63018462,3802.1,3801.2,2.63068636]
[1760709452956,1.728,3802.6,3801.1,0.2151]
[1760709453129,0.4293,3802.7,3801.5,2.63047439]
[1760709453327,0.04583028,3803.0,3801.6,1.3]
[1760709453694,0.2147,3805.7,3802.9,0.2151]
[1760709453839,0.2147,3805.7,3802.9,0.6551]
[1760709453840,0.04581855,3805.2,3802.9,0.6551]
[1760709454044,0.04581855,3805.2,3802.9,0.2151]
[1760709454045,0.4309,3805.1,3802.9,0.2151]
[1760709454262,1.35693646,3805.0,3803.0,0.44]
[1760709454590,1.728,3804.7,3803.7,2.62896288]
[1760709454861,0.4309,3805.6,3803.8,0.02628949]
[1760709455036,0.4309,3805.6,3803.9,0.44]
[1760709455638,2.62790819,3805.4,3804.4,2.62849509]
[1760709455867,0.6336,3805.6,3804.3,0.1453]
[1760709456051,0.30072,3805.5,3804.3,2.6285753]
[1760709456263,2.62784291,3805.5,3804.5,2.62844144]
[1760709456562,2.62798233,3805.3,3804.3,0.44]
[1760709456870,2.62798233,3805.3,3804.3,2.62858824]
[1760709456871,1.728,3805.2,3804.3,2.62858824]
[1760709457041,0.6336,3805.6,3804.0,0.1453]
[1760709457237,0.6794063,3805.6,3804.1,2.62874016]
[1760709457443,1.728,3805.0,3804.0,0.1453]
[1760709457960,1.0645,3805.3,3804.0,0.1453]
[1760709458148,0.13250063,3805.5,3804.0,0.1453]
[1760709458349,2.62617546,3807.9,3804.0,0.1453]
[1760709458350,2.62763763,3805.7,3804.0,0.5853]
[1760709458550,0.2147,3805.9,3804.0,3.21408657]
[1760709458730,1.77380219,3805.8,3804.9,2.62813864]
[1760709458934,0.04580219,3805.8,3804.5,0.44]
[1760709459140,1.728,3805.7,3804.0,0.1453]
[1760709459345,2.62806513,3805.1,3804.0,0.1453]
[1760709459549,2.62813329,3805.0,3804.0,0.1453]
[1760709459747,2.62819644,3804.9,3804.0,0.1453]
[1760709459948,0.2147,3804.9,3803.4,0.44]
[1760709460195,0.4309,3804.8,3802.9,0.6551]
[1760709460477,1.9427,3804.9,3803.0,0.44]
[1760709460645,2.62832812,3804.7,3803.8,2.62892774]
[1760709460973,2.62832812,3804.7,3803.6,3.06908185]
[1760709461174,2.62825904,3804.8,3804.2,0.1312]
[1760709461357,2.62843186,3804.6,3804.2,0.1312]
[1760709461565,0.3459,3804.9,3804.2,0.1312]
[1760709461874,2.62837555,3804.7,3804.2,0.1312]
[1760709462037,2.62840412,3804.6,3804.2,0.1312]
[1760709462238,0.3459,3804.9,3804.2,0.1312]
[1760709462446,2.62845777,3804.6,3804.2,0.1312]
[1760709462776,1.728,3804.8,3804.2,0.1312]
[1760709462987,2.6280035,3805.2,3804.0,0.44]
[1760709463144,2.62831986,3804.8,3804.6,0.1312]
[1760709463472,4.3560522,3805.1,3804.6,0.1312]
[1760709463677,15.60098071,3805.5,3804.3,2.62854132]
[1760709463860,15.60098071,3805.5,3803.5,2.62910874]
[1760709463861,2.62828278,3804.8,3803.9,2.6288258]
[1760709464066,2.62819521,3804.9,3804.0,0.26288258]
[1760709464250,0.47670517,3805.4,3803.5,0.44]
[1760709464449,2.1589,3805.4,3803.5,0.44]
[1760709464662,2.62791369,3805.3,3803.9,2.62886988]
[1760709464863,2.62823623,3804.9,3804.0,2.62876891]
[1760709465063,2.62826565,3804.8,3804.0,2.62876891]
[1760709465244,2.62832812,3804.7,3803.5,0.44]
[1760709465578,2.6283972,3804.6,3802.8,0.44]
[1760709465872,0.2147,3804.9,3803.7,2.62901584]
[1760709465873,2.62853082,3804.5,3803.7,2.62901584]
[1760709466060,1.9427,3804.9,3803.2,0.02629364]
[1760709466371,2.62811633,3805.1,3804.2,2.62862501]
[1760709466538,2.62831388,3804.8,3803.7,2.62898916]
[1760709466744,2.62826609,3804.8,3803.6,0.44]
[1760709466942,15.98606926,3804.7,3803.0,3.06949575]
[1760709467228,2.62858638,3804.4,3803.5,2.62911711]
[1760709467433,0.2147,3804.9,3803.2,2.62932291]
[1760709467597,0.2147,3804.9,3802.9,0.2151]
[1760709467598,0.2147,3804.9,3803.6,0.44]
[1760709467798,0.2147,3804.9,3803.0,2.62948507]
[1760709467799,0.2147,3804.9,3803.2,2.62931007]
[1760709468035,2.6287818,3804.1,3802.9,0.2151]
[1760709468185,2.6283769,3804.7,3802.9,0.2151]
[1760709468392,0.2147,3804.9,3803.0,0.44]
[1760709468603,0.2147,3804.9,3803.1,2.679509]
[1760709468815,2.62819776,3804.9,3804.1,2.62868939]
[1760709469027,2.84296638,3804.8,3803.8,0.44]
[1760709469193,0.2147,3804.8,3804.0,2.62874606]
[1760709469393,2.1589,3805.3,3803.8,0.44]
[1760709469594,0.4309,3805.3,3803.8,0.44]
[1760709470097,2.62814374,3805.0,3804.2,2.62864586]
[1760709470302,2.62814374,3805.0,3803.8,0.44]
[1760709470303,3.05853481,3805.8,3803.8,3.06891036]
[1760709470502,2.62761713,3805.8,3803.9,0.30689104]
[1760709470725,2.62777558,3805.5,3803.9,0.30689104]
[1760709470912,2.62815528,3805.0,3804.0,2.62874996]
[1760709471111,0.4309,3805.4,3803.9,0.30689104]
[1760709471313,0.4309,3805.4,3803.8,0.44]
[1760709471525,0.2147,3805.9,3803.9,6.17188168]
[1760709471727,0.6579,3806.1,3803.2,0.3334609]
[1760709471728,0.2167,3806.1,3804.0,0.49748811]
[1760709471929,2.84343266,3805.9,3804.6,2.62835812]
[1760709472229,2.84343266,3805.9,3804.4,0.4712]
[1760709472230,0.2159,3805.9,3804.4,0.4712]
[1760709472391,0.2159,3805.9,3805.0,2.62811881]
[1760709472591,2.62744727,3806.0,3805.2,2.62796674]
[1760709472826,2.62744727,3806.0,3804.0,0.1803]
[1760709472827,2.6274669,3806.0,3804.3,0.4712]
[1760709473027,0.6579,3806.1,3804.4,0.30998489]
[1760709473203,0.6579,3806.1,3804.5,0.02628466]
[1760709473398,2.6274796,3806.0,3804.6,0.4712]
[1760709473606,0.002,3806.1,3805.6,0.1312]
[1760709473898,0.002,3806.1,3805.8,0.1312]
[1760709474113,2.62936153,3806.1,3805.8,0.1312]
[1760709474309,2.62936153,3806.1,3803.0,15.55516926]
[1760709474310,2.62763749,3805.7,3803.8,0.4712]
[1760709474619,15.55516926,3805.6,3803.8,0.4712]
[1760709474925,2.62812994,3805.0,3804.2,2.62862976]
[1760709475131,0.2159,3804.9,3804.0,0.1803]
[1760709475331,0.4412,3805.5,3804.0,0.1803]
[1760709475638,0.2159,3804.9,3804.2,2.62866458]
[1760709475956,2.62867357,3804.2,3804.1,0.001]
[1760709476115,0.4412,3804.8,3804.1,0.001]
[1760709476116,2.62832812,3804.7,3804.1,0.001]
[1760709476300,0.32854281,3804.7,3804.1,0.001]
[1760709476639,0.2159,3804.9,3804.1,0.001]
[1760709476838,2.62867357,3804.2,3804.1,0.001]
[1760709477632,0.4412,3804.6,3804.1,0.001]
[1760709477796,2.62853014,3804.5,3804.1,0.001]
[1760709477996,0.2159,3804.9,3804.1,0.001]
[1760709478201,2.62865017,3804.3,3804.1,0.001]
[1760709478428,1.728,3804.7,3804.1,0.001]
[1760709478736,3.06987357,3804.2,3804.1,0.001]
[1760709479032,0.6571,3804.9,3804.1,0.001]
[1760709479535,2.62825904,3804.8,3804.1,2.81003486]
[1760709479710,0.2159,3804.9,3804.1,0.001]
[1760709480034,2.62864465,3804.3,3804.1,0.001]
[1760709480198,0.2159,3804.9,3804.1,0.001]
[1760709480401,0.2159,3804.9,3804.1,0.1813]
[1760709480703,0.2159,3804.9,3804.1,0.001]
[1760709480897,0.2159,3804.9,3804.1,0.1813]
[1760709481201,1.7738096,3805.2,3804.1,0.1813]
[1760709481402,0.002,3805.6,3804.1,0.6525]
[1760709481622,2.62817592,3805.0,3804.2,0.32813127]
[1760709481955,0.237,3804.9,3804.1,0.001]
[1760709482103,0.2362,3804.9,3804.1,0.001]
[1760709482435,0.2362,3804.9,3804.2,0.1811]
[1760709482436,2.62826388,3804.8,3804.2,0.1811]
[1760709482640,2.62798653,3805.2,3804.2,0.1811]
[1760709482813,2.62814099,3805.0,3804.2,0.1811]
[1760709483014,0.237,3804.9,3804.1,0.001]
[1760709483226,2.62846702,3804.5,3804.1,0.001]
[1760709483405,2.62846732,3804.5,3804.1,0.001]
[1760709483606,0.237,3804.9,3804.1,0.001]
[1760709483937,3.06818308,3804.5,3804.1,0.001]
[1760709484139,2.62858254,3804.4,3804.1,0.001]
[1760709484340,2.62858254,3804.4,3804.3,0.1312]
[1760709484642,2.62867357,3804.2,3804.1,0.001]
[1760709484805,2.62860447,3804.3,3804.1,0.001]
[1760709485009,2.62825904,3804.8,3804.1,0.001]
[1760709485329,0.28281399,3804.9,3804.1,0.001]
[1760709485330,3.06837357,3804.2,3804.1,0.001]
[1760709485641,3.06837357,3804.2,3801.9,0.1803]
[1760709485642,0.6336,3804.0,3801.9,0.1803]
[1760709485855,0.237,3803.9,3802.0,0.4379]
[1760709486084,2.62917975,3803.5,3802.0,0.4379]
[1760709486238,1.965,3803.9,3802.0,0.4379]
[1760709486567,1.728,3803.7,3802.0,0.4379]
[1760709486747,1.728,3803.7,3801.9,0.1803]
[1760709486947,1.728,3803.5,3801.9,0.1803]
[1760709487172,1.728,3803.5,3801.1,0.001]
[1760709487173,2.62967068,3802.8,3801.7,2.63035373]
[1760709487472,2.62944207,3803.1,3802.2,2.62999079]
[1760709487768,1.728,3803.4,3802.4,2.62991794]
[1760709487971,1.728,3803.6,3802.3,0.1823]
[1760709488147,1.728,3803.6,3802.2,2.62999721]
[1760709488148,2.62929561,3803.3,3802.2,2.62999721]
[1760709488332,0.4397,3803.4,3802.2,2.62999721]
[1760709488333,2.62952821,3803.0,3802.2,2.62999721]
[1760709488538,0.237,3802.9,3802.1,0.1823]
[1760709488739,0.6767,3802.9,3801.1,0.4389]
[1760709488939,1.728,3802.3,3801.1,0.001]
[1760709489173,2.86774818,3801.2,3801.1,0.001]
[1760709489372,2.63074818,3801.2,3801.1,0.001]
[1760709489576,2.63051729,3801.6,3801.1,0.001]
[1760709489775,15.99486926,3801.7,3801.1,0.001]
[1760709489776,2.6305922,3801.5,3801.1,0.001]
[1760709489949,15.99486926,3802.2,3801.1,0.001]
[1760709490154,0.4397,3801.8,3801.1,0.001]
[1760709490351,2.63074818,3801.2,3801.1,0.001]
[1760709490560,18.18591744,3801.2,3801.1,0.001]
[1760709490865,18.62561744,3801.2,3801.1,0.001]
[1760709491072,17.15465619,3802.1,3801.1,0.001]
[1760709491270,0.4397,3801.7,3801.1,0.001]
[1760709491471,15.55516926,3802.0,3801.1,0.001]
[1760709491779,0.04584719,3802.3,3801.2,0.1811]
[1760709491977,17.52016926,3802.5,3801.2,0.1811]
[1760709492190,20.15004935,3802.5,3801.6,2.63040743]
[1760709492357,2.62992854,3802.4,3801.2,0.1811]
[1760709492559,2.63006955,3802.2,3801.2,0.1811]
[1760709492757,17.52016926,3802.5,3801.1,0.001]
[1760709493069,2.63045959,3801.7,3801.1,0.001]
[1760709493376,15.55516926,3802.0,3801.1,0.001]
[1760709493594,2.63049092,3801.6,3801.1,0.001]
[1760709493759,15.55516926,3802.0,3801.1,0.001]
[1760709493958,0.4397,3801.5,3801.1,0.001]
[1760709494204,2.63032936,3801.9,3801.1,0.001]
[1760709494501,0.1312,3801.3,3801.1,0.001]
[1760709494711,2.63074818,3801.2,3801.1,0.001]
[1760709495008,3.07044818,3801.2,3801.1,0.001]
[1760709495189,5.43204818,3801.2,3801.1,0.001]
[1760709495793,1.8592,3801.2,3801.1,0.001]
[1760709496194,0.1312,3801.2,3801.1,0.001]
[1760709496589,0.4397,3801.9,3801.1,0.001]
[1760709496590,15.99486926,3801.9,3801.1,0.001]
[1760709496788,0.1312,3801.7,3801.1,0.001]
[1760709496990,1.728,3801.8,3801.1,0.001]
[1760709497191,2.63074818,3801.2,3801.1,0.001]
[1760709497581,5.43204818,3801.2,3801.1,0.001]
[1760709497980,2.63102504,3800.8,3800.7,0.001]
[1760709498209,4.35902504,3800.8,3800.7,0.001]
[1760709498391,4.79872504,3800.8,3800.7,0.001]
[1760709498610,4.35902504,3800.8,3800.7,0.001]
[1760709498923,4.79872504,3800.8,3800.7,0.001]
[1760709499227,0.6336,3800.4,3798.0,0.1811]
[1760709499426,0.6336,3799.5,3798.0,0.1811]
[1760709499600,0.237,3799.4,3798.0,0.1811]
[1760709499800,2.63247129,3798.8,3798.0,0.1811]
[1760709499995,2.6323484,3798.9,3798.0,0.1811]
[1760709500193,0.237,3798.8,3797.8,0.02633103]
[1760709500513,2.63234998,3798.9,3797.9,2.63302675]
[1760709500825,0.6767,3799.4,3798.0,0.02632964]
[1760709500991,0.45873606,3800.3,3799.3,0.1843]
[1760709501189,0.04586795,3800.3,3799.3,0.1843]
[1760709501386,15.55516926,3800.6,3800.0,2.63156878]
[1760709501709,2.63081848,3801.1,3799.5,0.02631925]
[1760709501710,15.55516926,3801.1,3799.5,0.02631925]
[1760709501892,15.55516926,3801.1,3799.3,0.1843]
[1760709501893,18.18599899,3801.1,3800.1,0.1076]
[1760709502090,15.55516926,3801.1,3800.1,0.1076]
[1760709502294,15.99316926,3801.1,3799.3,0.1843]
[1760709502632,15.99316926,3801.1,3799.4,0.4455]
[1760709502633,15.55516926,3801.1,3799.4,0.4455]
[1760709502836,0.237,3802.1,3799.5,0.32618592]
[1760709503005,2.63073343,3801.3,3799.8,2.63171745]
[1760709503191,0.2323,3801.5,3799.7,2.63178672]
[1760709503530,0.2323,3801.5,3799.8,0.4455]
[1760709503830,0.6336,3802.4,3799.3,1.9123]
[1760709503832,0.2323,3802.5,3800.0,2.299177]
[1760709504040,2.63083874,3801.1,3800.1,2.73904849]
[1760709504206,2.63083874,3801.1,3799.3,0.1843]
[1760709504207,0.2323,3800.2,3799.3,0.1843]
[1760709504406,15.78746926,3800.7,3799.5,2.63185852]
[1760709504630,2.63152081,3800.1,3799.3,2.81629923]
[1760709504826,2.63160406,3800.0,3799.3,0.1843]
[1760709504997,0.438,3800.6,3799.4,0.02631994]
[1760709505198,1.0716,3801.3,3799.4,0.47181994]
[1760709505393,1.0716,3801.3,3799.4,0.4455]
[1760709505641,2.63130196,3800.4,3799.3,0.1843]
[1760709505843,2.86354878,3800.5,3799.7,2.63178022]
[1760709506142,2.63101075,3800.9,3800.0,2.63151858]
[1760709506339,2.63075201,3801.2,3800.1,2.73985812]
[1760709506634,0.438,3801.4,3800.1,0.64555063]
[1760709506850,0.438,3801.4,3800.1,0.1084]
[1760709507009,0.438,3801.3,3799.6,0.4455]
[1760709507199,0.2323,3801.6,3800.2,0.1084]
[1760709507526,0.1312,3801.2,3800.6,0.1312]
[1760709507921,0.1312,3801.2,3800.1,0.1084]
[1760709507922,1.8592,3801.4,3800.8,0.1312]
[1760709508106,2.63073813,3801.3,3800.8,0.1312]
[1760709508508,1.728,3801.3,3800.8,0.1312]
[1760709508715,0.1312,3801.4,3800.8,0.1312]
[1760709509032,0.40935077,3801.9,3801.2,0.1312]
[1760709509230,0.40935077,3801.9,3800.1,0.1084]
[1760709509231,2.63076733,3801.2,3800.2,2.63137447]
[1760709509434,3.06885155,3801.1,3800.6,0.1312]
[1760709509599,2.63089987,3801.0,3800.6,0.1312]
[1760709509796,2.63089987,3801.0,3799.3,0.6298]
[1760709509797,0.2323,3800.7,3799.3,0.6298]
[1760709510012,1.728,3801.1,3800.4,2.63125339]
[1760709510364,0.6336,3801.1,3799.4,0.4455]
[1760709510505,2.63114765,3800.7,3799.4,0.4455]
[1760709510854,0.2323,3800.6,3799.5,0.32619285]
[1760709510996,0.2323,3800.6,3799.3,0.1843]
[1760709511201,0.6336,3800.5,3799.5,2.63189157]
[1760709511434,0.6336,3800.8,3799.5,2.63192525]
[1760709511738,0.6336,3800.8,3799.4,0.4455]
[1760709511739,0.2323,3800.9,3799.4,0.4455]
[1760709512106,2.63121838,3800.6,3799.9,2.63163729]
[1760709512319,0.2323,3800.9,3799.4,0.47181994]
[1760709512519,2.63119662,3800.6,3799.9,2.63164648]
[1760709512745,2.63131532,3800.4,3799.6,2.63182991]
[1760709512953,2.63149301,3800.2,3799.4,2.63192662]
[1760709513159,2.63136111,3800.4,3799.4,0.28162266]
[1760709513300,0.6336,3800.7,3799.4,2.6319765]
[1760709513506,2.63146158,3800.2,3799.5,2.63191215]
[1760709513735,2.63139345,3800.3,3799.3,0.1843]
[1760709513940,2.63135185,3800.4,3799.6,2.63183587]
[1760709514117,0.438,3800.6,3799.3,0.1843]
[1760709514436,2.63129648,3800.5,3799.7,2.63178218]
[1760709514636,2.63144049,3800.2,3799.3,0.47671022]
[1760709514837,3.06917588,3800.6,3799.3,0.47671022]
[1760709515001,2.63128939,3800.5,3799.7,2.63171921]
[1760709515199,0.2323,3800.8,3799.3,2.81632629]
[1760709515416,1.728,3800.7,3799.8,2.63169856]
[1760709515615,2.6311635,3800.6,3799.8,2.63169856]
[1760709515827,1.728,3800.7,3799.3,0.1843]
[1760709516001,1.9603,3800.8,3799.5,2.63187051]
[1760709516215,4.35904167,3800.8,3800.1,2.63146133]
[1760709516525,1.728,3800.7,3799.6,0.32879905]
[1760709516724,2.63109246,3800.8,3799.6,0.32879905]
[1760709516924,4.35909499,3800.7,3800.0,2.63152564]
[1760709517124,0.6336,3801.3,3799.3,2.8163248]
[1760709517125,1.728,3801.2,3800.1,0.1084]
[1760709517319,1.728,3800.9,3800.3,2.63130658]
[1760709517516,1.728,3800.9,3800.3,2.63132041]
[1760709517713,2.63093397,3801.0,3800.1,0.1084]
[1760709517714,1.728,3801.0,3800.1,0.1084]
[1760709517945,2.63102504,3800.8,3799.6,0.4455]
[1760709518149,2.63054611,3801.5,3799.3,0.1843]
[1760709518150,0.6703,3801.9,3800.3,2.6313712]
[1760709518438,0.2323,3801.9,3800.8,2.63095863]
[1760709518632,0.2323,3801.9,3801.0,2.63088199]
[1760709518827,3.06838801,3801.8,3801.1,2.63080659]
[1760709519145,0.438,3801.7,3800.2,0.1084]
[1760709519306,2.63073147,3801.3,3800.3,2.6313712]
[1760709519504,0.002,3801.3,3800.2,0.1084]
[1760709519704,0.002,3801.3,3801.2,0.1312]
[1760709519905,0.002,3801.3,3801.2,2.76194818]
[1760709521340,0.002,3801.3,3801.2,0.1312]
[1760709521758,0.002,3801.3,3799.3,0.001]
[1760709521759,11.70977,3801.2,3799.3,0.001]
[1760709521964,2.63185142,3799.7,3799.3,0.001]
[1760709522105,2.63163131,3800.0,3799.3,0.001]
[1760709522409,1.728,3800.0,3799.3,0.02732063]
[1760709522605,0.2323,3800.2,3799.3,0.02732063]
[1760709522942,0.2323,3800.2,3799.3,0.001]
[1760709523243,2.63199452,3799.4,3799.3,0.001]
[1760709524019,3.06999452,3799.4,3799.3,0.001]
[1760709524223,3.06999452,3799.4,3797.6,2.63323614]
[1760709524224,0.6336,3799.3,3795.9,0.001]
[1760709524451,0.6336,3798.6,3796.6,0.1843]
[1760709524727,2.63319157,3797.7,3796.8,2.63374131]
[1760709524938,1.728,3797.6,3796.7,0.4455]
[1760709525143,0.438,3798.1,3796.7,0.4455]
[1760709525308,2.63359177,3797.1,3796.5,0.1843]
[1760709525650,2.63342847,3797.4,3796.6,0.4455]
[1760709525847,2.63341287,3797.4,3796.6,0.4455]
[1760709526055,0.2323,3797.9,3796.6,0.4455]
[1760709526271,0.2323,3797.9,3796.0,1.23659438]
[1760709526272,3.26670337,3797.8,3796.0,1.23659438]
[1760709526464,2.63351943,3797.2,3796.0,0.79109438]
[1760709526614,2.63418419,3796.3,3796.0,0.79109438]
[1760709526955,0.438,3797.2,3796.1,0.4455]
[1760709526956,2.63382083,3796.8,3796.1,0.4455]
[1760709527170,15.84544042,3797.8,3796.1,0.4455]
[1760709527171,1.728,3797.7,3796.1,0.4455]
[1760709527339,2.63324204,3797.6,3796.8,2.63372808]
[1760709527655,0.2323,3797.9,3796.5,0.4455]
[1760709527812,0.2323,3797.8,3796.5,0.4455]
[1760709528014,2.63347823,3797.3,3796.5,2.63394451]
[1760709528335,2.6333793,3797.5,3796.6,2.63389309]
[1760709528509,0.2323,3797.8,3796.3,0.4455]
[1760709528711,15.63974042,3797.8,3796.4,2.63402085]
[1760709528908,2.63373429,3796.9,3796.2,2.63421316]
[1760709529140,0.438,3797.5,3796.0,0.79109438]
[1760709529473,0.2323,3796.8,3796.0,0.79109438]
[1760709529753,1.728,3797.4,3796.0,0.79109438]
[1760709530051,2.63345008,3797.3,3796.0,0.79109438]
[1760709530268,2.63390518,3796.7,3796.0,0.79109438]
[1760709530425,2.63427139,3796.2,3796.0,0.79109438]
[1760709530630,2.63428255,3796.1,3796.0,0.79109438]
[1760709530956,0.2323,3796.6,3796.0,0.79109438]
[1760709530957,2.63422162,3796.2,3796.0,0.79109438]
[1760709531266,0.438,3798.2,3796.1,2.614592]
[1760709531411,0.438,3798.2,3797.1,2.63355529]
[1760709531612,0.438,3798.2,3797.2,0.1821]
[1760709531862,0.1312,3798.4,3797.8,0.1312]
[1760709532068,2.85863404,3797.9,3797.8,0.1312]
[1760709532372,2.85863404,3797.9,3796.1,0.13474282]
[1760709532373,1.728,3797.8,3796.1,0.1084]
[1760709532656,0.2256,3797.9,3796.3,9.434549]
[1760709532819,1.728,3797.7,3796.1,0.1084]
[1760709533021,2.63315653,3797.8,3797.0,2.63365117]
[1760709533222,0.4444,3798.3,3797.1,0.1821]
[1760709533421,0.2256,3798.8,3797.1,0.1821]
[1760709533652,2.63281461,3798.3,3797.5,2.63325988]
[1760709533944,0.4444,3798.7,3797.1,2.81563799]
[1760709534112,2.63304622,3797.9,3797.1,2.81562098]
[1760709534309,2.63285552,3798.2,3797.1,0.1821]
[1760709534509,1.728,3798.2,3797.1,0.20843588]
[1760709534750,1.728,3798.3,3797.6,2.63319223]
[1760709534956,2.63277602,3798.3,3797.2,0.4678]
[1760709535161,2.63255006,3798.6,3797.6,2.63318725]
[1760709535373,2.63263549,3798.5,3797.7,2.63316694]
[1760709535677,2.63247953,3798.7,3797.9,2.63301521]
[1760709535832,0.2256,3798.8,3797.2,0.4678]
[1760709536033,2.63251113,3798.7,3798.0,2.63296059]
[1760709536380,0.6767,3799.2,3797.1,0.1821]
[1760709536381,0.6767,3799.2,3798.1,0.1463]
[1760709536843,0.6767,3799.2,3797.5,2.77956319]
[1760709537034,2.63280735,3798.3,3797.5,2.77956319]
[1760709537237,2.63303389,3798.0,3797.5,0.1463]
[1760709537434,2.63287811,3798.2,3797.5,0.1463]
[1760709537657,2.6329388,3798.1,3797.5,0.1463]
[1760709537972,2.63290245,3798.1,3797.4,2.63332203]
[1760709538277,0.4444,3798.3,3797.1,2.8156771]
[1760709538434,2.63300564,3798.0,3797.1,0.1821]
[1760709538632,0.4444,3798.3,3797.1,0.1821]
[1760709538863,2.63309811,3797.9,3797.1,2.81566884]
[1760709539059,2.63298699,3798.0,3797.2,2.63350516]
[1760709539263,0.2256,3798.7,3797.1,0.1821]
[1760709539575,2.6326707,3798.5,3797.2,0.4678]
[1760709539874,0.2256,3798.7,3797.3,2.63345008]
[1760709540176,0.002,3798.3,3798.1,2.63287612]
[1760709540373,0.002,3798.3,3798.2,2.77912607]
[1760709540869,0.002,3798.3,3797.2,3.26711943]
[1760709540870,0.4464,3798.3,3797.2,2.932]
[1760709541067,0.002,3798.3,3798.2,6.22680707]
[1760709541268,0.002,3798.3,3798.2,3.24692607]
[1760709541476,0.002,3798.3,3798.2,2.80545433]
[1760709541641,0.002,3798.3,3798.2,3.20672607]
[1760709542050,0.002,3798.3,3797.9,0.1463]
[1760709542373,0.4377,3798.2,3798.0,0.1312]
[1760709542607,2.63329614,3797.6,3797.5,0.1312]
[1760709542790,2.63329614,3797.6,3796.1,0.1084]
[1760709542791,0.4377,3797.6,3797.3,0.1312]
[1760709542988,0.23,3797.7,3797.3,0.1312]
[1760709543193,0.4377,3797.6,3797.3,0.1312]
[1760709543391,2.63338073,3797.4,3797.3,0.1312]
[1760709543571,0.1312,3797.6,3797.0,0.1312]
[1760709543771,0.5689,3797.6,3797.0,0.1312]
[1760709544005,3.07096598,3797.6,3797.2,0.1312]
[1760709544211,0.4377,3797.6,3797.2,0.1312]
[1760709544506,0.4377,3797.5,3797.2,0.1312]
[1760709544714,0.23,3798.1,3797.1,0.1821]
[1760709545014,0.002,3798.3,3798.2,2.76402607]
[1760709545176,0.002,3798.3,3798.2,11.27694607]
[1760709545373,0.002,3798.3,3798.2,5.20803907]
[1760709545622,0.002,3798.3,3798.2,2.76402607]
[1760709545770,0.002,3798.3,3798.2,3.19162607]
[1760709545975,0.002,3798.3,3798.2,7.66715207]
[1760709546271,0.002,3798.3,3798.2,2.76402607]
[1760709546472,0.002,3798.3,3798.2,5.69502607]
[1760709546673,0.002,3798.3,3798.2,6.12262607]
[1760709547206,0.002,3798.3,3798.2,8.72662607]
[1760709547417,0.002,3798.3,3798.2,5.36802607]
[1760709547628,0.002,3798.3,3798.2,0.1312]
[1760709547773,0.002,3798.3,3795.9,0.001]
[1760709547774,2.63300035,3798.0,3796.1,0.1084]
[1760709547974,2.63300035,3798.0,3796.2,1.5336]
[1760709547975,0.23,3797.9,3796.2,1.5336]
[1760709548472,0.23,3797.9,3796.4,3.791603]
[1760709548675,0.23,3797.8,3796.5,0.4276]
[1760709548997,0.23,3797.8,3796.6,2.63393562]
[1760709549375,0.23,3797.9,3796.6,0.4276]
[1760709549775,2.86307462,3797.9,3797.0,2.63359572]
[1760709549999,0.4377,3797.8,3796.2,1.106]
[1760709550208,0.23,3797.9,3796.3,3.129746]
[1760709550498,1.728,3798.0,3797.4,2.63338073]
[1760709550729,0.6677,3797.9,3796.5,2.63395652]
[1760709550910,0.6677,3797.9,3796.4,2.93]
[1760709551108,0.4377,3797.8,3796.0,0.001]
[1760709551308,0.23,3797.9,3796.2,2.18194213]
[1760709551535,0.23,3797.9,3796.2,0.4276]
[1760709551700,0.4377,3797.8,3796.2,1.728]
[1760709551901,3.0708954,3797.7,3796.5,2.63393889]
[1760709552101,0.4377,3797.7,3796.2,1.728]
[1760709552301,0.23,3797.9,3796.3,0.02634143]
[1760709552502,0.23,3797.9,3796.2,1.728]
[1760709552503,0.23,3797.9,3796.4,0.4276]
[1760709552815,0.002,3798.3,3796.8,0.6336]
[1760709553002,0.002,3798.3,3797.8,2.63309811]
[1760709553402,0.0012,3798.3,3797.8,2.63309811]
[1760709553611,0.0012,3798.3,3797.4,0.1821]
[1760709553812,0.4377,3798.2,3797.5,0.02633311]
[1760709554035,0.0012,3798.3,3797.2,0.1821]
[1760709554222,0.0012,3798.3,3797.8,2.63305837]
[1760709554409,0.0012,3798.3,3797.9,2.6593589]
[1760709554731,0.0012,3798.3,3797.2,0.1821]
[1760709554936,0.0012,3798.3,3797.8,2.63304343]
[1760709555307,0.0012,3798.3,3797.2,0.1821]
[1760709555641,0.0012,3798.3,3798.2,2.77912607]
[1760709556133,0.0012,3798.3,3798.2,3.20672607]
[1760709556730,0.0012,3798.3,3798.2,2.77912607]